fUSD/lending_fUSD_20240227
["ID","MTS","AMOUNT","RATE_DAILY","PERIOD"]
[315390286,1709003432359,-1059.5929874,0.00018412,2]
[315390287,1709003432369,-171.21685232,0.00018978,2]
[315390288,1709003432379,-412.50147129,0.00018995,2]
[315390289,1709003432388,-1108.37375157,0.00019078,2]
[315390290,1709003432397,-171.21685228,0.00019465,2]
[315390291,1709003432406,-412.50147129,0.0001968,2]
[315390292,1709003432415,-1108.37375149,0.00019716,2]
[315390293,1709003432424,-202.0,0.00019828,2]
[315390294,1709003432433,-249.4313,0.00019828,2]
[315390295,1709003432442,-250.0,0.00019888,2]
[315390296,1709003432452,-10847.29,0.0001991,2]
[315390297,1709003432461,-674.56,0.00019916,2]
[315390298,1709003432470,-171.21685228,0.00019952,2]
[315390299,1709003432479,-3743.22064366,0.0002,2]
[315390300,1709003432489,-794.78,0.00020069,2]
[315390301,1709003432499,-174.24,0.00020073,2]
[315390302,1709003432508,-151.97,0.00020206,2]
[315390303,1709003432517,-367.07,0.00020246,2]
[315390304,1709003432526,-256.0,0.00020256,2]
[315390305,1709003432535,-151.97,0.00020262,2]
[315390306,1709003432545,-151.97,0.00020317,2]
[315390307,1709003432554,-1108.37375149,0.00020354,2]
[315390308,1709003432563,-298.22,0.00020359,2]
[315390309,1709003432572,-412.50147129,0.00020365,2]
[315390310,1709003432581,-151.97,0.00020373,2]
[315390311,1709003432591,-151.97,0.00020428,2]
[315390312,1709003432600,-171.21685228,0.00020439,2]
[315390313,1709003432610,-151.97,0.00020483,2]
[315390314,1709003432619,-151.97,0.00020539,2]
[315390315,1709003432628,-2000.0,0.00020548,2]
[315390317,1709003432638,-179.16,0.0002056,2]
[315390318,1709003432647,-151.97,0.00020594,2]
[315390319,1709003432656,-151.97,0.0002065,2]
[315390320,1709003432665,-151.97,0.00020705,2]
[315390321,1709003432674,-151.97,0.00020761,2]
[315390322,1709003432684,-171.12,0.00020782,2]
[315390323,1709003432696,-151.97,0.00020816,2]
[315390324,1709003432705,-151.97,0.00020871,2]
[315390325,1709003432716,-1838.14,0.0002088,2]
[315390326,1709003432725,-406.91,0.0002088,2]
[315390327,1709003432737,-406.91,0.0002088,2]
[315390328,1709003432746,-617.56203419,0.0002088,2]
[315390329,1709003432765,-301.50796581,0.0002088,2]
[315390330,1709003432775,-406.91,0.0002088,2]
[315390331,1709003432786,-406.91,0.0002088,2]
[315390332,1709003432795,-919.07,0.0002088,2]
[315390333,1709003432805,-406.91,0.0002088,2]
[315390334,1709003432815,-406.91,0.0002088,2]
[315390335,1709003432824,-919.07,0.0002088,2]
[315390336,1709003432834,-171.21685228,0.00020926,2]
[315390337,1709003432843,-151.97,0.00020927,2]
[315390338,1709003432853,-151.97,0.00020982,2]
[315390339,1709003432862,-1108.37375149,0.00020992,2]
[315390340,1709003433082,-255.49376114,0.00021,2]
[315390341,1709003433091,-181.94458237,0.00021,2]
[315390342,1709003433100,-151.97,0.00021038,2]
[315390343,1709003433109,-412.50147129,0.0002105,2]
[315390344,1709003433118,-151.97,0.00021093,2]
[315390345,1709003433127,-28588.0,0.00021133,2]
[315390346,1709003433136,-151.97,0.00021148,2]
[315390347,1709003433145,-151.97,0.00021204,2]
[315390348,1709003433155,-202.0,0.00021214,4]
[315390349,1709003433164,-406.91,0.00021241,2]
[315390350,1709003433173,-151.97,0.00021259,2]
[315390351,1709003433182,-150.0,0.00021315,2]
[315390352,1709003433191,-413.39,0.00021315,2]
[315390353,1709003433200,-631.68,0.0002132,2]
[315390354,1709003433209,-1582.07611015,0.00021336,2]
[315390355,1709003433219,-171.21685228,0.00021413,2]
[315390356,1709003433229,-420.47,0.00021416,2]
[315390357,1709003433239,-161.31,0.00021416,2]
[315390358,1709003433248,-424.3,0.00021434,2]
[315390359,1709003433258,-300.0,0.00021451,2]
[315390360,1709003433267,-674.56,0.0002156,2]
[315390361,1709003433277,-1108.37375149,0.0002163,2]
[315390362,1709003433286,-412.50147129,0.00021735,2]
[315390363,1709003433295,-299.7089,0.000218,2]
[315390364,1709003433305,-816.2233,0.000218,2]
[315390365,1709003433314,-25379.1221,0.000218,2]
[315390366,1709003433324,-3912.87778011,0.000218,2]
[315390367,1709003433333,-406.91,0.00021839,2]
[315390368,1709003433342,-919.07,0.00021839,2]
[315390369,1709003433352,-406.91,0.00021839,2]
[315390370,1709003433362,-919.07,0.00021839,2]
[315390371,1709003433371,-406.91,0.00021839,2]
[315390372,1709003433381,-1838.14,0.00021839,2]
[315390373,1709003433390,-813.82,0.00021839,2]
[315390374,1709003433400,-406.91,0.00021839,2]
[315390375,1709003433409,-919.07,0.00021839,2]
[315390376,1709003433418,-1968.86,0.00021839,2]
[315390377,1709003433428,-406.91,0.00021839,2]
[315390378,1709003433437,-406.91,0.00021839,2]
[315390379,1709003433447,-334.15,0.00021839,2]
[315390380,1709003433457,-732.58,0.00021866,2]
[315390381,1709003433466,-344.56,0.00021866,2]
[315390382,1709003433475,-165.85,0.0002189,2]
[315390383,1709003433486,-155.0,0.00021899,2]
[315390384,1709003433496,-534.7861,0.000219,2]
[315390385,1709003433508,-190.7753,0.000219,2]
[315390386,1709003433518,-109509.4829,0.000219,2]
[315390387,1709003433528,-1776.6739,0.000219,2]
[315390388,1709003433538,-24336.58797279,0.000219,2]
[315390389,1709003433797,-19844.31679558,0.000219,2]
[315390390,1709003433809,-1209.89380055,0.000219,2]
[315390391,1709003433834,-813.6841211,0.000219,2]
[315390392,1709003433846,-1464.34284965,0.000219,2]
[315390393,1709003433857,-370.96709016,0.000219,2]
[315390394,1709003433870,-7525.07333502,0.000219,2]
[315390399,1709003440262,-744.0,0.00021388,2]
[315390400,1709003440272,-116.52852427,0.000219,2]
[315390401,1709003440337,-424.88047589,0.000219,2]
[315390402,1709003440478,-335.40893499,0.000219,2]
[315390403,1709003440489,-171.21685228,0.000219,2]
[315390404,1709003440498,-5000.0,0.000219,2]
[315390405,1709003440509,-4200.70251063,0.000219,2]
[315390406,1709003440522,-7646.49160018,0.000219,2]
[315390516,1709003441753,-43707.80588919,0.000219,2]
[315390518,1709003441763,-582.79245666,0.000219,5]
[315390520,1709003441776,-3652.60488744,0.000219,2]
[315390522,1709003441786,-174.17,0.00021918,2]
[315390524,1709003441796,-160.12,0.00021918,2]
[315390527,1709003441806,-355.44,0.00021954,2]
[315390529,1709003441816,-344.82,0.00021954,2]
[315390531,1709003441825,-344.82,0.00021954,2]
[315390533,1709003441835,-291.85747251,0.00021984,2]
[315390535,1709003441844,-500.0,0.00021999,2]
[315390537,1709003441854,-500.0,0.00021999,2]
[315390539,1709003441864,-359.55041622,0.00021999,2]
[315390541,1709003441873,-61426.01887798,0.00022,4]
[315390682,1709003443269,-81717.81747143,0.00022,4]
[315390696,1709003443358,-1305.46194867,0.00022,4]
[315390699,1709003443382,-5615.0,0.00022,4]
[315390726,1709003443674,-508031.86490765,0.00022,4]
[315390728,1709003443684,-2457.16998978,0.00022,2]
[315390730,1709003443697,-3100255.78640157,0.00022,7]
[315390998,1709003446402,-3082.20412475,0.00021999,2]
[315391000,1709003446412,-149.29587525,0.00022,7]
[315391007,1709003446462,-42287.93146916,0.00022,7]
[315391013,1709003446523,-3935.6499155,0.00022,7]
[315391015,1709003446534,-315.98585602,0.00022,7]
[315391023,1709003446593,-653366.54617759,0.00022,7]
[315391025,1709003446607,-16189.80896039,0.00022,7]
[315391031,1709003446653,-644.16604922,0.00022,7]
[315391409,1709004356142,-155.0,0.00018567,2]
[315391410,1709004356163,-330.36,0.00018568,2]
[315391411,1709004356183,-202.0,0.00019599,2]
[315391412,1709004356202,-145.89844352,0.00019929,2]
[315391413,1709004431103,-159.15101711,0.00019929,2]
[315391414,1709004473796,313.84,0.00017954,2]
[315391415,1709004522352,4880.85740675,0.00017954,2]
[315391416,1709004522536,127260.30259325,0.00017954,2]
[315391417,1709004553336,-9539.97360218,0.00017954,2]
[315391418,1709004559093,-16978.734,0.00017954,2]
[315391422,1709004631416,-0.06403822,0.00017953,2]
[315391423,1709004631430,-149.93596178,0.00017953,2]
[315391424,1709004631439,-67421.57666024,0.00017954,2]
[315391425,1709004631462,-1526.95921404,0.00017954,2]
[315391426,1709004631537,-0.09511593,0.00017954,2]
[315391427,1709004631549,-608.0,0.00017954,2]
[315391428,1709004631561,-3527.93474037,0.00017954,2]
[315391429,1709004631661,-670.90925028,0.00017954,2]
[315391430,1709004631722,-1421.52879784,0.00017954,2]
[315391431,1709004631734,-663.82444517,0.00017954,2]
[315391432,1709004631746,-723.29357829,0.00017954,2]
[315391433,1709004631786,-791.64233365,0.00017954,2]
[315391440,1709004637375,-10638.23803815,0.00017954,2]
[315391441,1709004637387,-994.0448245,0.00017954,2]
[315391442,1709004637398,-9851.62499999,0.00017954,2]
[315391443,1709004637410,-29313.04810998,0.00017954,2]
[315391444,1709004637421,-21813.52399991,0.00017954,2]
[315391445,1709004637435,-2367.62291392,0.00017954,2]
[315391446,1709004638876,-1242.75303331,0.00017954,2]
[315391447,1709004638933,-767.6318892,0.00017954,2]
[315391448,1709004638960,-28427.5350913,0.00017954,2]
[315391449,1709004638972,-16880.35319009,0.00017954,2]
[315391628,1709004640747,-268.12975912,0.00017954,2]
[315391648,1709004640922,-260.21861623,0.00017954,2]
[315391650,1709004640949,-1976.46254573,0.00017954,2]
[315391971,1709004644190,-19478.88738568,0.00017954,2]
[315391974,1709004644203,-602.35121161,0.00017954,2]
[315391976,1709004644215,-11637.94868452,0.00017954,2]
[315391986,1709004644308,-10577.94853972,0.00017954,2]
[315392104,1709004645383,-1358.97690797,0.00017954,2]
[315392108,1709004645396,-6457.2,0.00017954,2]
[315392111,1709004645407,-5637.0,0.00017954,2]
[315392118,1709004645434,-9499.9999925,0.00017954,2]
[315392123,1709004645464,-447.35226161,0.00017954,2]
[315392138,1709004645654,-563.78,0.00017954,2]
[315392146,1709004645715,-2582.55,0.00017954,2]
[315392251,1709004651283,242.00305056,0.00017854,2]
[315392252,1709004705908,202.5429851,0.00017499,2]
[315392254,1709004872954,151.0,0.00026619,120]
[315392255,1709005456991,151.0,0.00026222,120]
[315392256,1709005551384,-232.39919968,0.00014344,2]
[315392258,1709005633432,395.31,0.00026,41]
[315392259,1709005748140,-1050.08539075,0.00014341,2]
[315392260,1709005748163,-155.0,0.00014341,2]
[315392261,1709005748183,-1057.0,0.00014342,2]
[315392262,1709005748204,-165.53080032,0.00014344,2]
[315392263,1709005748225,-1261.672042,0.00015397,2]
[315392264,1709005748245,-150.0,0.00015475,2]
[315392265,1709005748266,-203.0,0.00015599,2]
[315392266,1709005748286,-549.75,0.00015662,2]
[315392267,1709005748306,-2033.54,0.00015662,2]
[315392268,1709005748326,-750.0,0.00015773,2]
[315392269,1709005748346,-1838.66,0.00015795,2]
[315392270,1709005748367,-150.0,0.00015803,2]
[315392271,1709005748395,-300.0,0.00015803,2]
[315392272,1709005748414,-14982.35,0.00015804,2]
[315392273,1709005748434,-200.0,0.0001582,2]
[315392274,1709005748453,-250.0,0.00015823,2]
[315392275,1709005748473,-200.0,0.00015891,2]
[315392276,1709005748494,-150.99,0.00015891,2]
[315392277,1709005748515,-499.99,0.00015892,2]
[315392278,1709005748534,-1802.29,0.00015892,2]
[315392279,1709005748554,-150.0,0.00016023,2]
[315392280,1709005748574,-92.29676693,0.00016116,2]
[315392281,1709005757091,-150.0,0.00015438,2]
[315392282,1709005757111,-174.87012141,0.00015986,2]
[315392283,1709005757131,-6071.73323307,0.00016116,2]
[315392284,1709005757150,-500.0,0.00016162,2]
[315392285,1709005757168,-500.0,0.00016211,2]
[315392286,1709005757187,-1353.5,0.00016261,2]
[315392287,1709005757207,-200.0,0.00016261,2]
[315392288,1709005757228,-1629.71,0.00016278,2]
[315392289,1709005757260,-595.2,0.00016331,2]
[315392290,1709005757283,-150.0,0.00016356,2]
[315392291,1709005757304,-994.91,0.00016381,2]
[315392292,1709005757326,-178.89,0.00016387,2]
[315392293,1709005757347,-150.0,0.00016427,2]
[315392294,1709005757369,-6252.70164552,0.00016438,2]
[315392295,1709005757400,-3002.1151,0.00016438,2]
[315392296,1709005766092,-1212.62325448,0.00016438,2]
[315392297,1709005766113,-23900.0,0.00016475,2]
[315392298,1709005766132,-1213.52145873,0.00016522,2]
[315392299,1709005766150,-183.93,0.00016523,2]
[315392300,1709005766169,-397.93,0.00016608,2]
[315392301,1709005766189,-171.19,0.00016639,2]
[315392302,1709005766208,-2161.0,0.00016641,2]
[315392303,1709005766229,-158.39592185,0.00016709,2]
[315392304,1709005766248,-474.78,0.00016722,2]
[315392305,1709005766269,-1852.42,0.00016792,2]
[315392306,1709005766288,-452.82,0.00016792,2]
[315392307,1709005766309,-844.70236494,0.00016891,2]
[315392308,1709005769137,-201.96820911,0.00016891,2]
[315392309,1709005769158,-4174.55486146,0.00016892,2]
[315392310,1709005769180,-203.0,0.00017079,3]
[315392311,1709005769202,-158.39592182,0.00017108,2]
[315392312,1709005769222,-2751.0,0.00017381,2]
[315392313,1709005769243,-210.0,0.00017384,2]
[315392314,1709005769264,-526.36,0.00017399,2]
[315392315,1709005769286,-596.6038195,0.00017399,2]
[315392316,1709005769306,-415.64,0.00017453,2]
[315392317,1709005769326,-634.83286722,0.00017497,2]
[315392318,1709005769346,-384.04112253,0.00017497,2]
[315392319,1709005769366,-334.94722603,0.00017497,2]
[315392320,1709005769386,-155.35612158,0.00017497,2]
[315392321,1709005769406,-718.18587409,0.00017497,2]
[315392322,1709005769439,-326.58501441,0.00017498,5]
[315392323,1709005769460,-206.39305524,0.00017498,2]
[315392324,1709005769481,-129115.17590701,0.00017499,2]
[315392325,1709005772105,-79029.90243851,0.00017499,2]
[315392326,1709005772150,-3456.81892141,0.00017499,2]
[315392327,1709005773113,-158949.59,0.00017499,2]
[315392328,1709005773147,-21925.226,0.00017499,2]
[315392336,1709005831584,-150.0,0.00016116,2]
[315392337,1709005831594,-150.0,0.00016116,2]
[315392338,1709005831603,-150.0,0.00016116,2]
[315392339,1709005831613,-150.0,0.00016116,2]
[315392340,1709005831622,-150.0,0.00016116,2]
[315392341,1709005831631,-150.0,0.00016116,2]
[315392342,1709005831640,-150.0,0.00016116,2]
[315392343,1709005831649,-150.0,0.00016116,2]
[315392344,1709005831658,-150.0,0.00016116,2]
[315392345,1709005831667,-150.0,0.00016116,2]
[315392346,1709005831676,-150.0,0.00016116,2]
[315392347,1709005831685,-150.0,0.00016116,2]
[315392348,1709005831694,-150.0,0.00016116,2]
[315392349,1709005831703,-150.0,0.00016116,2]
[315392350,1709005831713,-150.0,0.00016116,2]
[315392351,1709005831721,-150.0,0.00016116,2]
[315392352,1709005831730,-150.0,0.00016116,2]
[315392353,1709005831740,-150.0,0.00016116,2]
[315392354,1709005831750,-150.0,0.00016116,2]
[315392355,1709005831760,-150.0,0.00016116,2]
[315392356,1709005831770,-286.21804205,0.00017498,2]
[315392357,1709005831779,-5129.05028586,0.00017499,2]
[315392358,1709005831793,-1500.0,0.00017499,2]
[315392359,1709005831806,-2141.87030884,0.00017499,2]
[315392360,1709005831817,-404.06947543,0.00017499,2]
[315392361,1709005831828,-1016.54626931,0.00017499,2]
[315392362,1709005831846,-250.0,0.00017499,2]
[315392363,1709005831857,-1271.24,0.00017499,2]
[315392364,1709005831869,-5004.67761916,0.00017499,2]
[315392365,1709005831880,-5314.62472841,0.00017499,2]
[315392366,1709005831891,-318.62463799,0.00017499,2]
[315392367,1709005831903,-1968.30035255,0.00017499,2]
[315392368,1709005831942,-495.6858013,0.00017499,2]
[315392369,1709005831953,-1985.94766088,0.00017499,2]
[315392370,1709005831965,-32348.0,0.00017499,2]
[315392613,1709005838998,-61927.3,0.00017499,2]
[315392614,1709005839010,-825.57805478,0.00017499,2]
[315392615,1709005839022,-687.65721504,0.00017499,2]
[315392616,1709005839034,-382.81870125,0.00017499,2]
[315392617,1709005839046,-21089.8686376,0.00017499,2]
[315392618,1709005839058,-561.2699,0.00017499,2]
[315392619,1709005839071,-333.4011,0.00017499,2]
[315392620,1709005839084,-332.05198382,0.00017499,2]
[315392621,1709005839096,-526558.65813777,0.00017499,2]
[315392622,1709005839106,-996.42,0.00017499,2]
[315392623,1709005839115,-8896.84,0.00017499,2]
[315392624,1709005839124,-4880.85740675,0.00017499,2]
[315392625,1709005839134,-217.1263122,0.00017499,2]
[315392626,1709005839145,-158.39592182,0.00017508,2]
[315392627,1709005839156,-1107.58164961,0.00017547,2]
[315392628,1709005839167,-401.26,0.00017547,2]
[315392629,1709005839177,-702.75,0.00017595,2]
[315392630,1709005839188,-116035.98842192,0.0001778,2]
[315392631,1709005839199,-31675.37653765,0.0001778,2]
[315392632,1709005839214,-13128.03880031,0.0001778,2]
[315392633,1709005839225,-175.46,0.00017807,2]
[315392634,1709005839235,-187.43107138,0.00017853,2]
[315392635,1709005839245,-183.93,0.00017892,2]
[315392636,1709005839256,-1353.5,0.00017905,2]
[315392637,1709005839266,-158.39592182,0.00017907,2]
[315392638,1709005839276,-181.55,0.00017907,2]
[315392639,1709005839285,-2751.0,0.00017956,2]
[315392640,1709005839295,-1852.42,0.00017956,2]
[315392641,1709005839304,-415.64,0.0001807,2]
[315392642,1709005839314,-150.89,0.00018091,2]
[315392643,1709005839324,-1107.5816495,0.00018125,2]
[315392644,1709005839333,-150.89,0.00018154,2]
[315392645,1709005839343,-161.55,0.00018161,2]
[315392646,1709005839352,-404.8,0.00018165,2]
[315392648,1709005839362,-150.89,0.00018217,2]
[315392650,1709005839370,-150.89,0.0001828,2]
[315392652,1709005839380,-158.39592182,0.00018306,2]
[315392654,1709005839389,-596.60381944,0.00018328,2]
[315392656,1709005839398,-150.89,0.00018342,2]
[315392658,1709005839407,-595.2,0.00018373,2]
[315392660,1709005839417,-150.89,0.00018405,2]
[315392662,1709005839426,-150.89,0.00018468,2]
[315392664,1709005839436,-150.89,0.00018531,2]
[315392665,1709005839445,-203.0,0.00018559,5]
[315392667,1709005839454,-150.89,0.00018594,2]
[315392668,1709005839463,-150.89,0.00018657,2]
[315392669,1709005839472,-415.64,0.00018687,2]
[315392671,1709005839482,-1107.5816495,0.00018702,2]
[315392672,1709005839491,-158.39592182,0.00018706,2]
[315392674,1709005839501,-150.89,0.0001872,2]
[315392676,1709005839510,-150.89,0.00018782,2]
[315392677,1709005839520,-350.0,0.00018796,2]
[315392679,1709005839530,-150.89,0.00018845,2]
[315392681,1709005839539,-397.93,0.00018871,2]
[315392683,1709005839549,-150.89,0.00018908,2]
[315392684,1709005839559,-150.89,0.00018971,2]
[315392686,1709005839569,-150.89,0.00019034,2]
[315392688,1709005839579,-2466.1776,0.00019096,2]
[315392689,1709005839588,-158.39592182,0.00019105,2]
[315392691,1709005839598,-293.0,0.00019122,2]
[315392693,1709005839607,-200.0,0.00019178,2]
[315392695,1709005839617,-200.0,0.00019178,2]
[315392696,1709005839626,-200.0,0.00019178,2]
[315392698,1709005839635,-153.0,0.00019178,2]
[315392700,1709005839645,-500.0,0.00019178,2]
[315392702,1709005839654,-596.60381944,0.00019256,2]
[315392703,1709005839663,-1107.5816495,0.0001928,2]
[315392705,1709005839672,-415.64,0.00019304,2]
[315392707,1709005839681,-454.0,0.00019345,2]
[315392709,1709005839690,-155.0,0.00019345,2]
[315392710,1709005839700,-158.39592182,0.00019504,2]
[315392712,1709005839709,-1353.5,0.00019549,2]
[315392714,1709005839719,-326.58501441,0.00019587,5]
[315392716,1709005839728,-175.46,0.00019588,2]
[315392717,1709005839737,-186.77095745,0.00019757,2]
[315392719,1709005839748,-604.50229058,0.000198,2]
[315392721,1709005839758,-2435.06992496,0.000198,2]
[315392723,1709005839767,-150.0,0.00019807,2]
[315392725,1709005839776,-413.39,0.00019807,2]
[315392726,1709005839785,-150.0,0.00019807,2]
[315392728,1709005839796,-413.39,0.00019856,2]
[315392730,1709005839805,-1107.5816495,0.00019857,2]
[315392732,1709005839814,-427.15309808,0.00019879,2]
[315392733,1709005839823,-53563.70273735,0.0001988,2]
[315392735,1709005839836,-56250.0,0.0001988,2]
[315392738,1709005839864,-150.0,0.00019536,2]
[315392740,1709005839873,-4699.83798976,0.0001988,2]
[315392753,1709005840018,-96966.9395973,0.0001988,2]
[315392755,1709005840030,-317.88,0.0001988,2]
[315392829,1709005840945,-150.0,0.00019703,2]
[315392831,1709005840955,-121.5,0.0001988,2]
[315392839,1709005841021,-563.95431913,0.0001988,2]
[315392841,1709005841033,-491.78967782,0.0001988,2]
[315392843,1709005841044,-556.35,0.0001988,2]
[315392849,1709005841089,-3352.69627029,0.0001988,2]
[315392851,1709005841101,-56100.00000001,0.0001988,2]
[315392867,1709005841232,-969.98500006,0.0001988,2]
[315393239,1709005844829,-151.06115736,0.00019255,2]
[315393241,1709005844839,-424.18,0.00019772,2]
[315393243,1709005844848,-111657.38600308,0.0001988,2]
[315393245,1709005844862,-1581.46540399,0.0001988,2]
[315393259,1709005844997,-313194.08932637,0.0001988,2]
[315393321,1709005845548,-374.95,0.0001988,2]
[315393358,1709005845920,-18796.8339593,0.0001988,2]
[315393360,1709005845932,-15335.7,0.0001988,2]
[315393363,1709005845943,-7173.24884563,0.0001988,2]
[315393365,1709005845955,-563.07,0.0001988,2]
[315393368,1709005845973,-811862.998274,0.0001988,2]
[315393504,1709005889272,151.0,0.00026025,120]
[315393507,1709006005464,-207.0,0.00015599,2]
[315393508,1709006005496,-200.0,0.00015599,2]
[315393509,1709006005527,-300.0,0.00017498,2]
[315393510,1709006005557,-150.0,0.00017498,2]
[315393511,1709006005587,-150.0,0.00017498,2]
[315393512,1709006005616,-365.83,0.00018037,2]
[315393513,1709006005645,-402.08,0.00019031,2]
[315393514,1709006005672,-407.86146198,0.00019035,2]
[315393515,1709006005702,-170.62,0.00019036,2]
[315393516,1709006005730,-500.0,0.00019036,2]
[315393517,1709006005758,-430.0,0.00019097,2]
[315393518,1709006005785,-303.0,0.00019102,2]
[315393519,1709006005812,-1138.94293747,0.0001939,2]
[315393520,1709006005839,-1138.94293747,0.00019568,2]
[315393521,1709006005869,-560.31287226,0.0001978,2]
[315393522,1709006005896,-1623.37994996,0.0001978,2]
[315393523,1709006005925,-400.27228163,0.0001978,2]
[315393524,1709006005954,-2563.15914675,0.0001987,2]
[315393525,1709006005983,-446.19750664,0.00019878,2]
[315393526,1709006006011,-155.0,0.00019878,2]
[315393527,1709006006041,-329.54804693,0.00019879,2]
[315393528,1709006006068,-167.44889657,0.00019879,2]
[315393529,1709006006096,-487890.40396234,0.0001988,2]
[315393539,1709006109481,-271.90764132,0.00019038,2]
[315393540,1709006109517,-202.0,0.00019039,2]
[315393541,1709006109780,-403.00152706,0.0001978,2]
[315393542,1709006109814,-394.84690218,0.0001978,2]
[315393543,1709006109844,-1082.25329998,0.0001978,2]
[315393544,1709006109877,-524.95914113,0.00019878,2]
[315393545,1709006109908,-150.0,0.00019879,2]
[315393546,1709006109939,-150.0,0.00019879,2]
[315393547,1709006109969,-183.06561346,0.00019879,2]
[315393548,1709006109997,-296637.96587487,0.0001988,2]
[315393772,1709006381717,9970.13503987,1e-08,2]
[315393773,1709006432119,151.0,0.00026452,120]
[315393781,1709006691483,151.0,0.00025838,120]
[315393782,1709006744159,-166.23397529,0.00014375,2]
[315393783,1709006744183,-226.5897011,0.00014474,2]
[315393784,1709006744206,-164.08,0.00014475,2]
[315393785,1709006744229,-213.60121478,0.00016454,2]
[315393786,1709006744251,-969.56,0.00016455,2]
[315393787,1709006744272,-169.47,0.00016712,2]
[315393788,1709006744293,-164.08,0.00016888,2]
[315393789,1709006744314,-184.87,0.00017613,2]
[315393790,1709006744335,-1439.08568348,0.00017635,2]
[315393793,1709006795096,-203.0,0.00017039,2]
[315393794,1709006795118,-150.0,0.00017147,2]
[315393795,1709006795141,-59.8743907,0.00017634,2]
[315393796,1709006946117,-2508.4513,0.00015938,2]
[315393797,1709006947119,151.0,0.0002649,120]
[315393798,1709006953101,-1460.06,0.00015938,2]
[315393799,1709006955118,-206.04356146,0.00015938,2]
[315393800,1709006955141,-935.15,0.00015939,2]
[315393801,1709006955161,-150.0,0.00016716,2]
[315393802,1709006955181,-1019.928,0.000169,2]
[315393803,1709006955201,-150.0,0.00017264,2]
[315393804,1709006955221,-4880.85740675,0.00017634,2]
[315393805,1709006955241,-970.84431652,0.00017635,2]
[315393806,1709006955262,-1615.2,0.00017635,2]
[315393807,1709006955282,-8448.76336717,0.00017654,2]
[315393822,1709007035127,-1374.75060042,0.00017633,2]
[315393823,1709007035137,-158.74086297,0.00017634,2]
[315393824,1709007035184,-0.27193651,0.00017634,2]
[315393825,1709007035197,-4326.13110852,0.00017634,2]
[315393826,1709007035208,-150.0,0.00017654,2]
[315393827,1709007035218,-150.0,0.00017654,2]
[315393828,1709007035228,-150.0,0.00017654,2]
[315393829,1709007035238,-15451.23663283,0.00017654,2]
[315393830,1709007035249,-2395.4,0.00017672,2]
[315393831,1709007035259,-188.24,0.00017672,2]
[315393832,1709007035269,-551.16,0.00017686,2]
[315393833,1709007035280,-4335.04,0.00017716,2]
[315393834,1709007035290,-260.44,0.00017716,2]
[315393835,1709007035300,-3875.44,0.00017716,2]
[315393836,1709007035310,-179.77,0.00017729,2]
[315393837,1709007035321,-200.0,0.00017769,2]
[315393838,1709007035331,-8834.47930581,0.0001777,2]
[315393839,1709007035351,-49073.25069419,0.0001777,2]
[315393840,1709007035361,-642.88,0.00017789,2]
[315393841,1709007035372,-500.0,0.0001783,2]
[315393842,1709007035381,-3947.7,0.0001786,2]
[315393843,1709007035391,-500.0,0.0001786,2]
[315393844,1709007035401,-360.1,0.0001786,2]
[315393845,1709007035411,-171.19,0.00017861,2]
[315393846,1709007035421,-2897.6,0.00017874,2]
[315393847,1709007035431,-4205.89,0.00017874,2]
[315393848,1709007035441,-8701.41,0.00017874,2]
[315393849,1709007035451,-29668.63,0.00017874,2]
[315393850,1709007035461,-750.0,0.00017899,2]
[315393851,1709007035471,-150.0,0.00017903,2]
[315393852,1709007035481,-2751.0,0.00017905,2]